lending/lending_fUSD_20251116
["ID","MTS","AMOUNT","RATE_DAILY","PERIOD"]
[394104853,1763285440134,-200.0,0.00021437,2]
[394104854,1763285440143,-162.47544706,0.00021473,2]
[394104855,1763285440152,-150.79490104,0.00021473,2]
[394104856,1763285440162,-150.39,0.0002149,2]
[394104857,1763285440171,-51916.38663746,0.000215,2]
[394104858,1763285440182,-220.3225361,0.000215,2]
[394104859,1763285440191,-150.82,0.00021695,2]
[394104860,1763285440201,-5148.59025049,0.00021746,2]
[394104861,1763285440211,-3066.47,0.00021757,2]
[394104862,1763285440221,-150.99,0.00021757,2]
[394104863,1763285440231,-999.99,0.00021757,2]
[394104864,1763285440241,-504.5964297,0.00021915,2]
[394104865,1763285440250,-5000.0,0.00021918,2]
[394104866,1763285440260,-181.08010149,0.00021918,2]
[394104867,1763285440270,-150.39,0.0002199,2]
[394104868,1763285440279,-150.39,0.0002199,2]
[394104869,1763285440289,-666.0,0.00021999,2]
[394104870,1763285440299,-648.94,0.00022,7]
[394104871,1763285440318,-128638.53315963,0.00022,4]
[394104872,1763285440330,-164.0,0.00022,2]
[394104873,1763285440340,-280.9,0.00022,2]
[394104874,1763285440350,-150.39,0.00022077,2]
[394104875,1763285440360,-1105.91310064,0.00022087,5]
[394104876,1763285440370,-1105.69180177,0.00022087,5]
[394104877,1763285440380,-1134.11146496,0.00022087,5]
[394104878,1763285440390,-1056.58733749,0.00022087,5]
[394104879,1763285440399,-1083.9619517,0.00022087,5]
[394104880,1763285440409,-1051.46504333,0.00022087,5]
[394104881,1763285440419,-1126.03891496,0.00022087,5]
[394104882,1763285440429,-1062.59320676,0.00022087,5]
[394104883,1763285440438,-1052.22526152,0.00022087,5]
[394104884,1763285440448,-1088.32912281,0.00022087,5]
[394104885,1763285440458,-1048.88881995,0.00022087,5]
[394104886,1763285440468,-1930.11154704,0.00022087,5]
[394104887,1763285440477,-479.06402154,0.00022284,2]
[394104888,1763285440488,-187.78006525,0.00022466,2]
[394104889,1763285440497,-1000.0,0.00022621,2]
[394104890,1763285440507,-1152.0,0.00022645,2]
[394104891,1763285440517,-150.0,0.00022673,2]
[394104892,1763285440536,-518.69245827,0.0002271,2]
[394104893,1763285440546,-5148.59025049,0.00022764,2]
[394104894,1763285440555,-666.0,0.00022899,2]
[394104895,1763285440565,-436.13267163,0.00023,2]
[394104896,1763285440575,-999.08325414,0.00023,2]
[394104897,1763285440584,-194.72792766,0.00023014,2]
[394104898,1763285440594,-2563.86516149,0.000231,2]
[394104899,1763285440604,-4609.0,0.00023104,2]
[394104900,1763285440614,-250.0,0.00023221,2]
[394104901,1763285440624,-174.29663274,0.0002325,2]
[394104902,1763285440634,-11581.17907004,0.00023333,7]
[394104903,1763285440643,-479.06402154,0.0002334,7]
[394104904,1763285440653,-885.2,0.00023368,2]
[394104905,1763285440663,-200.0,0.000235,2]
[394104906,1763285440676,-201.93286099,0.00023562,2]
[394104907,1763285440685,-322.6107,0.00023661,2]
[394104908,1763285440695,-239.14760503,0.00023661,2]
[394104909,1763285440705,-574.12855637,0.00023661,2]
[394104910,1763285440715,-151.0,0.00023661,2]
[394104911,1763285440725,-151.0,0.00023661,2]
[394104912,1763285440735,-500.0,0.00023661,2]
[394104913,1763285440748,-151.0,0.00023661,2]
[394104914,1763285440758,-151.0,0.00023661,2]
[394104915,1763285440768,-151.0,0.00023661,2]
[394104916,1763285440779,-151.0,0.00023661,2]
[394104917,1763285440788,-151.0,0.00023661,2]
[394104918,1763285440798,-151.0,0.00023661,2]
[394104919,1763285440809,-151.0,0.00023661,2]
[394104920,1763285440819,-151.0,0.00023661,2]
[394104921,1763285440829,-151.0,0.00023661,2]
[394104922,1763285440839,-151.0,0.00023661,2]
[394104923,1763285440849,-151.0,0.00023661,2]
[394104924,1763285440859,-151.0,0.00023661,2]
[394104925,1763285440869,-151.0,0.00023661,2]
[394104926,1763285440883,-151.0,0.00023661,2]
[394104927,1763285440893,-151.0,0.00023661,2]
[394104928,1763285440902,-151.0,0.00023661,2]
[394104929,1763285440912,-151.0,0.00023661,2]
[394104930,1763285440922,-151.0,0.00023661,2]
[394104931,1763285440932,-151.0,0.00023661,2]
[394104932,1763285440943,-151.0,0.00023661,2]
[394104933,1763285440952,-151.0,0.00023661,2]
[394104934,1763285440962,-250.0,0.00023661,2]
[394104935,1763285440972,-250.0,0.00023661,2]
[394104936,1763285440981,-250.0,0.00023661,2]
[394104937,1763285440991,-250.0,0.00023661,2]
[394104938,1763285441001,-277.35679052,0.00023661,2]
[394104939,1763285441011,-250.0,0.00023661,2]
[394104940,1763285441021,-250.0,0.00023661,2]
[394104941,1763285441030,-250.0,0.00023661,2]
[394104942,1763285441040,-250.0,0.00023661,2]
[394104943,1763285441049,-250.0,0.00023661,2]
[394104944,1763285441059,-250.0,0.00023661,2]
[394104945,1763285441073,-250.0,0.00023661,2]
[394104946,1763285441083,-250.0,0.00023661,2]
[394104947,1763285441093,-250.0,0.00023661,2]
[394104948,1763285441102,-250.0,0.00023661,2]
[394104949,1763285441112,-250.0,0.00023661,2]
[394104950,1763285441121,-250.0,0.00023661,2]
[394104951,1763285441131,-250.0,0.00023661,2]
[394104952,1763285441141,-250.0,0.00023661,2]
[394104953,1763285441151,-250.0,0.00023661,2]
[394104954,1763285441160,-250.0,0.00023661,2]
[394104955,1763285441170,-250.0,0.00023661,2]
[394104956,1763285441179,-250.0,0.00023661,2]
[394104957,1763285441189,-250.0,0.00023661,2]
[394104958,1763285441199,-250.0,0.00023661,2]
[394104959,1763285441208,-250.0,0.00023661,2]
[394104960,1763285441218,-250.0,0.00023661,2]
[394104961,1763285441228,-151.0,0.00023661,2]
[394104962,1763285441237,-350.0,0.00023768,2]
[394104963,1763285441247,-5148.59025049,0.00023782,2]
[394104964,1763285441260,-150.39,0.0002379,2]
[394104965,1763285441271,-150.39,0.0002379,2]
[394104966,1763285441280,-150.39,0.0002379,2]
[394104967,1763285441291,-150.39,0.0002379,2]
[394104968,1763285441300,-214519.0,0.000238,2]
[394104969,1763285441310,-980.31175032,0.00023906,2]
[394104970,1763285441320,-1012.0755497,0.00024,2]
[394104971,1763285441330,-151.0,0.00024006,7]
[394104972,1763285441340,-151.0,0.00024006,7]
[394104973,1763285441350,-151.0,0.00024006,7]
[394104974,1763285441360,-165.104213,0.00024006,7]
[394104975,1763285441370,-151.0,0.00024006,7]
[394104976,1763285441380,-151.0,0.00024006,7]
[394104977,1763285441390,-151.0,0.00024006,7]
[394104978,1763285441399,-161.211889,0.00024006,7]
[394104979,1763285441410,-151.0,0.00024006,7]
[394104980,1763285441419,-151.0,0.00024006,7]
[394104981,1763285441428,-151.0,0.00024006,7]
[394104982,1763285441438,-158.371195,0.00024006,7]
[394104983,1763285441452,-151.0,0.00024006,7]
[394104984,1763285441461,-153.714524,0.00024006,7]
[394104985,1763285441471,-329.406227,0.00024006,7]
[394104986,1763285441481,-329.406227,0.00024006,7]
[394104987,1763285441490,-151.0,0.00024006,7]
[394104988,1763285441501,-151.0,0.00024006,7]
[394104989,1763285441510,-329.406227,0.00024006,7]
[394104990,1763285441520,-151.0,0.00024006,7]
[394104991,1763285441529,-151.0,0.00024006,7]
[394104992,1763285441539,-329.406227,0.00024006,7]
[394104993,1763285441549,-151.0,0.00024006,7]
[394104994,1763285441558,-151.0,0.00024006,7]
[394104995,1763285441568,-151.0,0.00024006,7]
[394104996,1763285441578,-151.0,0.00024006,7]
[394104997,1763285441587,-183.398054,0.00024006,7]
[394104998,1763285441599,-155.471458,0.00024006,7]
[394104999,1763285441609,-151.0,0.00024006,7]
[394105000,1763285441619,-151.0,0.00024006,7]
[394105001,1763285441628,-151.0,0.00024006,7]
[394105002,1763285441638,-274.475119,0.00024006,7]
[394105003,1763285441650,-152.793394,0.00024006,7]
[394105004,1763285441659,-151.0,0.00024006,7]
[394105005,1763285441669,-151.0,0.00024006,7]
[394105006,1763285441679,-151.0,0.00024006,7]
[394105007,1763285441689,-151.0,0.00024006,7]
[394105008,1763285441699,-151.0,0.00024006,7]
[394105009,1763285441708,-213.900215,0.00024006,7]
[394105010,1763285441718,-151.0,0.00024006,7]
[394105011,1763285441728,-151.0,0.00024006,7]
[394105012,1763285441738,-213.900215,0.00024006,7]
[394105013,1763285441753,-151.0,0.00024006,7]
[394105014,1763285441764,-213.900215,0.00024006,7]
[394105015,1763285441774,-151.0,0.00024006,7]
[394105016,1763285441783,-213.900215,0.00024006,7]
[394105017,1763285441795,-151.0,0.00024006,7]
[394105018,1763285441804,-151.0,0.00024006,7]
[394105019,1763285441814,-151.0,0.00024006,7]
[394105020,1763285441824,-225.770558,0.00024006,7]
[394105021,1763285441834,-151.0,0.00024006,7]
[394105022,1763285441844,-151.0,0.00024006,7]
[394105023,1763285441854,-151.0,0.00024006,7]
[394105024,1763285441863,-151.0,0.00024006,7]
[394105025,1763285441874,-151.0,0.00024006,7]
[394105026,1763285441883,-181.103134,0.00024006,7]
[394105027,1763285441893,-1599.0,0.00024006,2]
[394105028,1763285441903,-821.0,0.00024006,2]
[394105029,1763285441912,-793.0,0.00024006,2]
[394105030,1763285441922,-1275.0,0.00024006,2]
[394105031,1763285441932,-907.0,0.00024006,2]
[394105032,1763285441942,-1190.0,0.00024006,2]
[394105033,1763285441951,-575.0,0.00024006,2]
[394105034,1763285441961,-1318.0,0.00024006,2]
[394105035,1763285441971,-608.0,0.00024006,2]
[394105036,1763285441980,-150.82,0.00024105,2]
[394105037,1763285441989,-209.40437684,0.0002411,2]
[394105038,1763285441999,-648.94,0.000242,7]
[394105039,1763285442008,-595.37131296,0.00024209,2]
[394105040,1763285442018,-418.12012153,0.0002421,2]
[394105041,1763285442036,-3663.86805983,0.0002421,2]
[394105042,1763285442048,-409.07,0.00024247,2]
[394105043,1763285442058,-450.0,0.00024316,2]
[394105044,1763285442068,-5518.0,0.000244,3]
[394105045,1763285442078,-280.9,0.00024428,2]
[394105046,1763285442087,-592.23865605,0.0002465,2]
[394105047,1763285442097,-166.02760448,0.0002465,2]
[394105048,1763285442107,-773.85,0.00024658,2]
[394105049,1763285442118,-1726.83,0.00024658,30]
[394105050,1763285442127,-217.15233878,0.00024658,2]
[394105051,1763285442137,-184.05080951,0.000247,4]
[394105052,1763285442147,-477.55763504,0.000247,2]
[394105053,1763285442156,-617.40005154,0.00024757,2]
[394105054,1763285442166,-150.39,0.00024763,2]
[394105055,1763285442176,-1613.0,0.00024763,2]
[394105056,1763285442186,-500.0,0.00024773,2]
[394105057,1763285442196,-501.84826476,0.00024773,2]
[394105058,1763285442415,-474.82122033,0.00024773,2]
[394105059,1763285442425,-508.2246355,0.00024773,2]
[394105060,1763285442434,-500.0,0.00024773,2]
[394105061,1763285442444,-500.99618926,0.00024773,2]
[394105062,1763285442453,-323.08070533,0.00024773,2]
[394105063,1763285442463,-164.00583255,0.00024773,2]
[394105064,1763285442474,-873.78870874,0.0002479,2]
[394105065,1763285442485,-300.0,0.00024799,10]
[394105066,1763285442499,-300.0,0.00024799,10]
[394105067,1763285442508,-666.0,0.00024799,2]
[394105068,1763285442518,-479.06402154,0.000248,3]
[394105069,1763285442528,-307.712402,0.000248,7]
[394105070,1763285442537,-307.712402,0.000248,7]
[394105071,1763285442547,-151.0,0.000248,7]
[394105072,1763285442556,-307.712402,0.000248,7]
[394105073,1763285442566,-151.0,0.000248,7]
[394105074,1763285442575,-307.712402,0.000248,7]
[394105075,1763285442585,-151.0,0.000248,7]
[394105076,1763285442595,-151.0,0.000248,7]
[394105077,1763285442605,-151.0,0.000248,7]
[394105078,1763285442615,-214.412412,0.000248,7]
[394105079,1763285442625,-151.0,0.000248,7]
[394105080,1763285442634,-151.0,0.000248,7]
[394105081,1763285442644,-151.0,0.000248,7]
[394105082,1763285442653,-151.0,0.000248,7]
[394105083,1763285442662,-151.0,0.000248,7]
[394105084,1763285442671,-151.0,0.000248,7]
[394105085,1763285442681,-225.032242,0.000248,7]
[394105086,1763285442690,-151.0,0.000248,7]
[394105087,1763285442699,-151.0,0.000248,7]
[394105088,1763285442709,-151.0,0.000248,7]
[394105089,1763285442719,-161.513378,0.000248,7]
[394105091,1763285442728,-151.0,0.000248,7]
[394105092,1763285442738,-151.0,0.000248,7]
[394105093,1763285442751,-151.0,0.000248,7]
[394105094,1763285442760,-151.0,0.000248,7]
[394105095,1763285442771,-256.091231,0.000248,7]
[394105096,1763285442782,-256.091231,0.000248,7]
[394105097,1763285442791,-256.091231,0.000248,7]
[394105098,1763285442800,-256.091231,0.000248,7]
[394105099,1763285442809,-151.972917,0.000248,7]
[394105100,1763285442819,-234.5773231,0.000248,2]
[394105101,1763285442828,-163.149315,0.000248,7]
[394105102,1763285442837,-163.149315,0.000248,7]
[394105103,1763285442847,-151.0,0.000248,7]
[394105104,1763285442856,-163.149315,0.000248,7]
[394105105,1763285442866,-151.0,0.000248,7]
[394105106,1763285442875,-163.149315,0.000248,7]
[394105107,1763285442884,-151.0,0.000248,7]
[394105108,1763285442893,-151.0,0.000248,7]
[394105109,1763285442902,-151.0,0.000248,7]
[394105110,1763285442912,-151.0,0.000248,7]
[394105111,1763285442921,-151.0,0.000248,7]
[394105113,1763285442930,-151.0,0.000248,7]
[394105115,1763285442939,-203.848953,0.000248,7]
[394105117,1763285442948,-151.0,0.000248,7]
[394105119,1763285442958,-151.0,0.000248,7]
[394105120,1763285442967,-754.641947,0.000248,7]
[394105121,1763285442976,-151.0,0.000248,7]
[394105122,1763285442985,-754.641947,0.000248,7]
[394105123,1763285442994,-754.641947,0.000248,7]
[394105124,1763285443004,-754.641947,0.000248,7]
[394105125,1763285443014,-151.0,0.000248,7]
[394105126,1763285443022,-151.0,0.000248,7]
[394105127,1763285443031,-151.0,0.000248,7]
[394105128,1763285443041,-151.0,0.000248,7]
[394105129,1763285443050,-157.581908,0.000248,7]
[394105130,1763285443059,-160.745587,0.000248,7]
[394105131,1763285443068,-151.0,0.000248,7]
[394105132,1763285443077,-151.0,0.000248,7]
[394105133,1763285443087,-151.0,0.000248,7]
[394105134,1763285443095,-329.406227,0.000248,7]
[394105135,1763285443106,-151.0,0.000248,7]
[394105136,1763285443115,-329.406227,0.000248,7]
[394105137,1763285443124,-151.0,0.000248,7]
[394105138,1763285443133,-329.406227,0.000248,7]
[394105139,1763285443142,-151.0,0.000248,7]
[394105140,1763285443151,-329.406227,0.000248,7]
[394105141,1763285443161,-151.0,0.000248,7]
[394105142,1763285443171,-151.0,0.000248,7]
[394105143,1763285443180,-151.0,0.000248,7]
[394105144,1763285443189,-151.0,0.000248,7]
[394105145,1763285443198,-151.0,0.000248,7]
[394105146,1763285443207,-151.0,0.000248,7]
[394105147,1763285443217,-151.0,0.000248,7]
[394105148,1763285443227,-151.0,0.000248,7]
[394105149,1763285443237,-151.0,0.000248,7]
[394105150,1763285443246,-151.0,0.000248,7]
[394105151,1763285443256,-151.0,0.000248,7]
[394105152,1763285443266,-213.900215,0.000248,7]
[394105153,1763285443276,-151.0,0.000248,7]
[394105154,1763285443285,-253.049661,0.000248,7]
[394105155,1763285443294,-213.900215,0.000248,7]
[394105156,1763285443304,-151.0,0.000248,7]
[394105157,1763285443314,-213.900215,0.000248,7]
[394105158,1763285443323,-151.0,0.000248,7]
[394105159,1763285443333,-213.900215,0.000248,7]
[394105160,1763285443343,-151.0,0.000248,7]
[394105161,1763285443352,-261.369398,0.000248,7]
[394105162,1763285443362,-166.453057,0.000248,7]
[394105163,1763285443371,-151.0,0.000248,7]
[394105164,1763285443380,-193.063553,0.000248,7]
[394105165,1763285443390,-601883.480347,0.000248,3]
[394105166,1763285443399,-151.0,0.000248,7]
[394105167,1763285443408,-151.0,0.000248,7]
[394105168,1763285443418,-304.618117,0.000248,7]
[394105169,1763285443427,-5148.59025049,0.000248,2]
[394105170,1763285443437,-304.618117,0.000248,7]
[394105171,1763285443447,-151.0,0.000248,7]
[394105172,1763285443456,-154.259977,0.000248,7]
[394105173,1763285443465,-304.618117,0.000248,7]
[394105174,1763285443475,-151.0,0.000248,7]
[394105175,1763285443484,-304.618117,0.000248,7]
[394105176,1763285443493,-151.0,0.000248,7]
[394105177,1763285443502,-151.0,0.000248,7]
[394105178,1763285443512,-151.0,0.000248,7]
[394105179,1763285443522,-151.0,0.000248,7]
[394105180,1763285443531,-151.0,0.000248,7]
[394105182,1763285443542,-186.668261,0.000248,7]
[394105183,1763285443551,-151.0,0.000248,7]
[394105185,1763285443560,-186.668261,0.000248,7]
[394105186,1763285443569,-272.380758,0.000248,7]
[394105187,1763285443578,-186.668261,0.000248,7]
[394105188,1763285443587,-272.380758,0.000248,7]
[394105189,1763285443596,-186.668261,0.000248,7]
[394105190,1763285443606,-272.380758,0.000248,7]
[394105191,1763285443615,-272.380758,0.000248,7]
[394105192,1763285443624,-151.0,0.000248,7]
[394105193,1763285443633,-151.0,0.000248,7]
[394105194,1763285443642,-151.755537,0.000248,7]
[394105195,1763285443651,-151.755537,0.000248,7]
[394105196,1763285443660,-151.755537,0.000248,7]
[394105197,1763285443669,-151.755537,0.000248,7]
[394105198,1763285443678,-152.896676,0.000248,7]
[394105199,1763285443688,-151.0,0.000248,7]
[394105200,1763285443697,-151.0,0.000248,7]
[394105201,1763285443707,-151.0,0.000248,7]
[394105202,1763285443716,-151.0,0.000248,7]
[394105203,1763285443726,-151.0,0.000248,7]
[394105204,1763285443735,-151.0,0.000248,7]
[394105205,1763285443747,-151.0,0.000248,7]
[394105206,1763285443756,-151.0,0.000248,7]
[394105207,1763285443766,-334.897074,0.000248,7]
[394105208,1763285443775,-334.897074,0.000248,7]
[394105209,1763285443786,-151.0,0.000248,7]
[394105210,1763285443795,-151.0,0.000248,7]
[394105211,1763285443804,-152.971918,0.000248,7]
[394105212,1763285443814,-151.0,0.000248,7]
[394105213,1763285443825,-334.897074,0.000248,7]
[394105214,1763285443834,-334.897074,0.000248,7]
[394105215,1763285443843,-151.0,0.000248,7]
[394105216,1763285443852,-240.358672,0.000248,7]
[394105217,1763285443861,-334.897074,0.000248,7]
[394105218,1763285443870,-334.897074,0.000248,7]
[394105219,1763285443880,-334.897074,0.000248,7]
[394105220,1763285443889,-334.897074,0.000248,7]
[394105221,1763285443897,-151.0,0.000248,7]
[394105222,1763285443906,-151.0,0.000248,7]
[394105223,1763285443915,-151.0,0.000248,7]
[394105224,1763285443924,-151.0,0.000248,7]
[394105225,1763285443933,-151.0,0.000248,7]
[394105226,1763285443943,-151.0,0.000248,7]
[394105227,1763285443952,-1388.646103,0.000248,7]
[394105228,1763285443961,-187.966846,0.000248,7]
[394105229,1763285443970,-1388.646103,0.000248,7]
[394105230,1763285443979,-151.0,0.000248,7]
[394105231,1763285443987,-165.666462,0.000248,7]
[394105232,1763285443997,-151.0,0.000248,7]
[394105233,1763285444006,-1388.646103,0.000248,7]
[394105234,1763285444015,-151.0,0.000248,7]
[394105235,1763285444026,-1388.646103,0.000248,7]
[394105236,1763285444035,-151.0,0.000248,7]
[394105237,1763285444044,-151.0,0.000248,7]
[394105238,1763285444054,-151.0,0.000248,7]
[394105239,1763285444063,-151.0,0.000248,7]
[394105240,1763285444071,-151.0,0.000248,7]
[394105241,1763285444081,-151.0,0.000248,7]
[394105242,1763285444090,-1388.646103,0.000248,7]
[394105243,1763285444099,-151.0,0.000248,7]
[394105244,1763285444108,-1388.646103,0.000248,7]
[394105245,1763285444117,-174.497614,0.000248,7]
[394105246,1763285444126,-174.497614,0.000248,7]
[394105247,1763285444135,-151.0,0.000248,7]
[394105248,1763285444144,-227.374883,0.000248,7]
[394105249,1763285444154,-151.0,0.000248,7]
[394105250,1763285444163,-151.0,0.000248,7]
[394105251,1763285444172,-1388.646103,0.000248,7]
[394105252,1763285444181,-1388.646103,0.000248,7]
[394105253,1763285444190,-174.497614,0.000248,7]
[394105254,1763285444199,-174.497614,0.000248,7]
[394105255,1763285444209,-151.0,0.000248,7]
[394105256,1763285444218,-151.0,0.000248,7]
[394105257,1763285444227,-151.0,0.000248,7]
[394105258,1763285444236,-151.0,0.000248,7]
[394105259,1763285444245,-174.497614,0.000248,7]
[394105260,1763285444255,-174.497614,0.000248,7]
[394105261,1763285444265,-156.291878,0.000248,7]
[394105262,1763285444274,-151.0,0.000248,7]
[394105263,1763285444284,-153.633799,0.000248,7]
[394105264,1763285444293,-151.0,0.000248,7]
[394105265,1763285444303,-174.497614,0.000248,7]
[394105266,1763285444312,-174.497614,0.000248,7]
[394105267,1763285444321,-151.0,0.000248,7]
[394105268,1763285444330,-151.0,0.000248,7]
[394105269,1763285444339,-151.0,0.000248,7]
[394105270,1763285444348,-151.0,0.000248,7]
[394105271,1763285444357,-151.0,0.000248,7]
[394105272,1763285444367,-159.242683,0.000248,7]
[394105273,1763285444376,-151.0,0.000248,7]
[394105274,1763285444386,-151.0,0.000248,7]
[394105275,1763285444395,-181.313631,0.000248,7]
[394105276,1763285444404,-154.892174,0.000248,7]
[394105277,1763285444413,-154.892174,0.000248,7]
[394105278,1763285444422,-1081.086785,0.000248,7]
[394105279,1763285444431,-1081.086785,0.000248,7]
[394105280,1763285444441,-154.892174,0.000248,7]
[394105281,1763285444450,-151.0,0.000248,7]
[394105282,1763285444459,-151.0,0.000248,7]
[394105283,1763285444469,-1081.086785,0.000248,7]
[394105284,1763285444478,-151.0,0.000248,7]
[394105285,1763285444487,-151.0,0.000248,7]
[394105286,1763285444496,-154.892174,0.000248,7]
[394105287,1763285444506,-1081.086785,0.000248,7]
[394105288,1763285444515,-151.0,0.000248,7]
[394105289,1763285444529,-154.892174,0.000248,7]
[394105290,1763285444538,-154.892174,0.000248,7]
[394105291,1763285444548,-151.0,0.000248,7]
[394105292,1763285444557,-1081.086785,0.000248,7]
[394105293,1763285444566,-1081.086785,0.000248,7]
[394105294,1763285444575,-154.892174,0.000248,7]
[394105295,1763285444585,-154.892174,0.000248,7]
[394105296,1763285444594,-151.0,0.000248,7]
[394105297,1763285444604,-1081.086785,0.000248,7]
[394105298,1763285444613,-151.0,0.000248,7]
[394105299,1763285444622,-156.693005,0.000248,7]
[394105300,1763285444632,-1081.086785,0.000248,7]
[394105301,1763285444641,-156.089534,0.000248,7]
[394105302,1763285444650,-151.0,0.000248,7]
[394105303,1763285444659,-151.0,0.000248,7]
[394105304,1763285444668,-217.611013,0.000248,7]
[394105305,1763285444677,-151.0,0.000248,7]
[394105306,1763285444686,-151.0,0.000248,7]
[394105307,1763285444696,-160.531221,0.000248,7]
[394105308,1763285444705,-151.0,0.000248,7]
[394105309,1763285444714,-151.0,0.000248,7]
[394105310,1763285444723,-217.611013,0.000248,7]
[394105311,1763285444732,-151.0,0.000248,7]
[394105312,1763285444743,-168.706241,0.000248,7]
[394105313,1763285444753,-151.0,0.000248,7]
[394105314,1763285444762,-168.706241,0.000248,7]
[394105315,1763285444771,-151.811139,0.000248,7]
[394105316,1763285444780,-172.24071,0.000248,7]
[394105317,1763285444791,-217.611013,0.000248,7]
[394105318,1763285444800,-151.0,0.000248,7]
[394105319,1763285444809,-168.706241,0.000248,7]
[394105320,1763285444820,-151.0,0.000248,7]
[394105321,1763285444829,-168.706241,0.000248,7]
[394105322,1763285444838,-217.611013,0.000248,7]
[394105323,1763285444847,-151.0,0.000248,7]
[394105324,1763285444856,-172.24071,0.000248,7]
[394105325,1763285444866,-168.706241,0.000248,7]
[394105326,1763285444875,-168.706241,0.000248,7]
[394105327,1763285444884,-178.920798,0.000248,7]
[394105328,1763285445024,-172.24071,0.000248,7]
[394105329,1763285445034,-151.0,0.000248,7]
[394105330,1763285445043,-168.706241,0.000248,7]
[394105331,1763285445053,-168.706241,0.000248,7]
[394105332,1763285445062,-178.920798,0.000248,7]
[394105333,1763285445071,-151.0,0.000248,7]
[394105334,1763285445080,-172.24071,0.000248,7]
[394105335,1763285445090,-151.0,0.000248,7]
[394105336,1763285445099,-178.920798,0.000248,7]
[394105337,1763285445108,-151.0,0.000248,7]
[394105338,1763285445117,-151.0,0.000248,7]
[394105339,1763285445126,-178.920798,0.000248,7]
[394105340,1763285445136,-550.0,0.00024864,2]
[394105341,1763285445146,-666.0,0.00024899,2]
[394105342,1763285445155,-151.0,0.000249,7]
[394105343,1763285445166,-164.04266,0.000249,7]
[394105344,1763285445175,-256.091231,0.000249,7]
[394105345,1763285445184,-256.091231,0.000249,7]
[394105346,1763285445193,-256.091231,0.000249,7]
[394105347,1763285445202,-256.091231,0.000249,7]
[394105348,1763285445212,-163.149315,0.000249,7]
[394105349,1763285445221,-163.149315,0.000249,7]
[394105350,1763285445231,-151.0,0.000249,7]
[394105351,1763285445240,-163.149315,0.000249,7]
[394105352,1763285445249,-163.149315,0.000249,7]
[394105353,1763285445258,-227.373261,0.000249,7]
[394105354,1763285445268,-151.0,0.000249,7]
[394105355,1763285445277,-151.0,0.000249,7]
[394105356,1763285445286,-286.094522,0.000249,7]
[394105357,1763285445296,-157.014294,0.000249,7]
[394105358,1763285445306,-151.0,0.000249,7]
[394105359,1763285445315,-153.818967,0.000249,7]